Cogmind - Beta 15 @@@ ROGUE MODE // 2025.06.08 @ 20:58:47 Player: the Result: Destroyed by 4R-WHV(R) with Subdweller Machine Gun Performance ------------- Evolutions (0) 0 Regions Visited (2) 400 Robots Destroyed (41) 205 Value Destroyed (961) 961 Prototype IDs (15) 300 Alien Tech Used (0) 0 Bonus (0) 0 TOTAL SCORE: 1866 Bonus ------- None Cogmind --------- Core Integrity 0/250 Matter 156/300 Energy 248/250 System Corruption 3% Temperature Cool (18) Movement Rolling (110) Ox2 Location -10/Subcaves Parts ------- > --- POWER (1) -------- Ion Engine > --- PROPULSION (2) --- Wheel Wheel > --- UTILITY (2) ------ High-capacity Storage Unit Light Armor Plating > --- WEAPON (2) ------- Spread Laser Spread Laser > --- INVENTORY (20) --- Ion Engine Subdweller Power Source Light Nuclear Core Flightbrick Heat Sink Huge Storage Unit Structural Scanner Seismic Detector Scrap Shield Autogun Barrage Gun Barrage Gun Grenade Launcher Mining Laser Flamer Flamer Peak State ------------ > --- POWER ------------ Ion Engine > --- PROPULSION ------- Wheel Wheel > --- UTILITY ---------- High-capacity Storage Unit Light Armor Plating > --- WEAPON ----------- Spread Laser Spread Laser > --- INVENTORY -------- Ion Engine Subdweller Power Source Light Nuclear Core Flightbrick Heat Sink Huge Storage Unit Structural Scanner Seismic Detector Scrap Shield Autogun Barrage Gun Barrage Gun Grenade Launcher Mining Laser Flamer Flamer [Rating: 15] Favorites ----------- Power Ion Engine Engine Ion Engine Propulsion Wheel Treads Light Treads Wheel Wheel Utility High-capacity Storage Unit Device Seismic Detector Storage High-capacity Storage Unit Protection Light Armor Plating Weapon Spread Laser Energy Gun Spread Laser Ballistic Gun Light Assault Rifle Launcher Grenade Launcher Special Weapon Mining Laser Build | -11 -10 -10 ------- Run | Yrd Mat Sub Slots Evolved . | . . . Power . | . . . Propulsion . | . . . Utility . | . . . Weapon . | . . . Parts Attached 38 | 7 16 15 Power 8 | 1 3 4 Engine 8 | 1 3 4 Core . | . . . Reactor . | . . . Propulsion 10 | 2 3 5 Treads 2 | 2 . . Leg . | . . . Wheel 8 | . 3 5 Hover . | . . . Flight . | . . . Utility 11 | 2 7 2 Device 4 | 1 3 . Storage 4 | 1 3 . Processor . | . . . Hackware . | . . . Protection 3 | . 1 2 Artifact . | . . . Weapon 9 | 2 3 4 Energy Gun 4 | . 2 2 Energy Cannon . | . . . Ballistic Gun 3 | 2 . 1 Ballistic Cannon . | . . . Launcher 1 | . 1 . Special Weapon 1 | . . 1 Impact Weapon . | . . . Slashing Weapon . | . . . Piercing Weapon . | . . . Special Melee Weapon . | . . . Unidentified Prototypes . | . . . Parts Lost 7 | . 1 6 Power 1 | . . 1 Propulsion 2 | . . 2 Utility 2 | . 1 1 Weapon 2 | . . 2 Highest Loss Streak 2 | . 1 2 To Critical Strikes . | . . . Average Backups 16 | 4 14 17 Power 2 | . 1 3 Propulsion . | 2 1 . Utility 4 | . 4 5 Weapon 7 | 1 6 8 Tool/Special . | . . . Unused Backups 25 | 1 9 15 Power 1 | . . 1 Propulsion 5 | 1 3 1 Utility 4 | . 1 3 Weapon 15 | . 5 10 Tool/Special . | . . . Average Slot Usage (%) 99 | . 99 99 Engine 14 | . 14 14 Treads 2 | . 9 . Wheel 24 | . 18 27 Device 4 | . 12 . Storage 14 | . 14 14 Protection 9 | . 1 13 Energy Gun 24 | . 18 26 Ballistic Gun 2 | . 8 . Peak Build Rating 15 | 7 12 15 Average Rating 10 | 5 10 11 On Entrance 6 | . 7 11 Naked Turns . | . . . Heaviest Build 92 | 14 92 54 Greatest Support 40 | 40 40 40 Greatest Overweight (x) 5 | . 4 5 Average Overweight (x) 1 | . 1 1 Largest Inventory Capacity 25 | 8 25 20 Average Capacity 19 | 7 17 20 Most Carried 20 | 8 20 20 Average Carried 16 | 5 14 18 Final Capacity 20 | 8 20 20 Final Carried 20 | 8 20 20 Class Distribution -------------------- 99% | Mutant Dominant Class ---------------- Mutant | -10/Materials Mutant | -10/Subcaves Resources | -11 -10 -10 ----------- Run | Yrd Mat Sub Matter Collected 1136 | 314 506 316 Remotely . | . . . Salvage Created 946 | 146 527 273 Parts 74 | 14 38 22 Haulers Intercepted 2 | . 2 . Recyclers Shooed . | . . . Parts Field Recycled . | . . . Retrieved Matter . | . . . Parts Self-Destructed 4 | . . 4 Prevented . | . . . Kills | -11 -10 -10 ------- Run | Yrd Mat Sub Combat Hostiles Destroyed 26 | . 13 13 Guns 23 | . 10 13 AOE 3 | . 3 . Classes Destroyed 9 | 3 5 1 Worker 4 | 1 3 . Builder 1 | . 1 . Tunneler 4 | 3 1 . Hauler 2 | . 2 . Recycler 1 | 1 . . Watcher 3 | . 3 . Swarmer 5 | . 5 . Grunt 10 | . 8 2 Subdweller 11 | . . 11 Best Kill Streak 5 | 5 4 3 Combat Bots Only 3 | . 3 3 Max Kills in Single Turn 1 | 1 1 1 Gunslinging . | . . . Exploded 1 | . 1 . Melee . | . . . Uniques/NPCs Destroyed . | . . . Combat | -11 -10 -10 -------- Run | Yrd Mat Sub Hostile Shots Fired 105 | . 48 57 Missed 32 | . 10 22 Hits 73 | . 38 35 Projectile 73 | . 38 35 AOE 2 | . . 2 Critical Strikes 2 | . . 2 Damage Taken 1461 | . 451 1010 Core 272 | . 94 178 Absorbed by Shields . | . . . Core Remaining (%) 100 | 100 . . Volleys Fired 135 | 11 63 61 Largest 2 | 2 2 2 Hottest 130 | 40 130 130 Shots Fired 247 | 22 122 103 Gun 221 | 22 117 82 Cannon . | . . . Launcher 6 | . 5 1 Special 20 | . . 20 Kinetic 96 | 22 74 . Thermal 145 | . 43 102 Explosive 6 | . 5 1 Electromagnetic . | . . . Robot Hit Streak 15 | 5 10 15 Robot Miss Streak 8 | 3 8 4 Penetration Max . | . . . Secondary Targets 4 | . 2 2 Max Gunslinging Chain 1 | . 1 1 Shots Hit Robots 170 | 12 86 72 Core Hits 156 | 8 68 80 Critical Kills 1 | . 1 . Critical Parts Destroyed . | . . . Critical Strikes 1 | . 1 . Destroy 1 | . 1 . Melee Attacks . | . . . Impact . | . . . Slashing . | . . . Piercing . | . . . Sneak Attacks . | . . . Combat Hostiles . | . . . Follow-up Attacks . | . . . Damage Inflicted 2417 | 145 1092 1180 Guns 2281 | 145 956 1180 Cannons . | . . . Explosions 136 | . 136 . Melee . | . . . Ramming . | . . . Kinetic 647 | 145 502 . Thermal 1634 | . 454 1180 Explosive 136 | . 136 . Electromagnetic . | . . . Impact . | . . . Slashing . | . . . Piercing . | . . . Highest Corruption 3 | . 3 3 Average Corruption 2 | . 2 3 Corruption Purged . | . . . Corruption Blocked . | . . . Effects 73 | . 12 61 Message Errors 23 | . 5 18 Matter Fused 12 | . 3 9 Heat Flow Errors 7 | . 2 5 Energy Discharges 15 | . 1 14 Data Loss (minor) 9 | . . 9 Data Loss (major) 4 | . . 4 Misfires 3 | . 1 2 Overload Shots . | . . . Overflow Damage 11 | . 11 . Projectiles . | . . . Explosions 11 | . 11 . Melee . | . . . Knockbacks . | . . . Impact . | . . . Kinetic . | . . . Secondary . | . . . Self-Inflicted Damage 28 | . 28 . Shots 1 | . 1 . Rammed . | . . . Targets Rammed . | . . . Kicked . | . . . Crushed . | . . . Highest Temperature 321 | . 321 158 Average Temperature 66 | . 79 45 Received Heat Transfer 351 | . 171 180 Effects 2 | . 2 . Energy Bleed 2 | . 2 . Siege Activations . | . . . Martial Activations . | . . . Shielding Activations . | . . . Robots Disrupted . | . . . Combat Hostiles . | . . . Robots Corrupted . | . . . Combat Hostiles . | . . . Parts Fried . | . . . Impact Corruptions . | . . . Robots Melted . | . . . Combat Hostiles . | . . . Parts Melted . | . . . Heat Transferred 2065 | . 560 1505 Parts Sabotaged . | . . . Parts Stolen . | . . . Parts Stripped . | . . . Power Chain Reactions . | . . . Alert | -11 -10 -10 ------- Run | Yrd Mat Sub Maximum Alert Level . | . . . Low Security (%) 100 | 100 100 . Level 1 . | . . . Level 2 . | . . . Level 3 . | . . . Level 4 . | . . . Level 5 . | . . . High Security . | . . . Max Security . | . . . Peak Influence 86 | 10 86 . Initial . | . . . Average 20 | 1 22 . Influence Increases 513 | 25 438 50 Destroy 0b10 Robot/C 300 | . 260 40 Destroy 0b10 Robot/NC 75 | 25 50 . Destroy Leader 70 | . 60 10 Successful Hack 31 | . 31 . Disable Machine 15 | . 15 . Destroy Structure 22 | . 22 . Influence Decreases 513 | 25 370 118 Entered New Map 33 | . . 33 Time Decay 475 | 25 365 85 Lost Part 5 | . 5 . Squads Dispatched 3 | . 3 . Investigation 2 | . 2 . Extermination . | . . . Reinforcement 1 | . 1 . Assault . | . . . Garrison . | . . . Intercept . | . . . Searches Triggered . | . . . Construction Impeded . | . . . Haulers Reinforced . | . . . Active Scanning Responses . | . . . Cargo Convoy Interrupts . | . . . Stealth | -11 -10 -10 --------- Run | Yrd Mat Sub Distress Signals 2 | . 2 . Communications Jammed . | . . . Distress Signals . | . . . Times Spotted 40 | . 24 16 Peak Tracking Total 4 | . 4 3 Tactical Retreats . | . . . Traps | -11 -10 -10 ------- Run | Yrd Mat Sub Traps Triggered 10 | . 5 5 Indirectly . | . . . Trap Hack Attempts . | . . . Triggered . | . . . Disarmed . | . . . Reprogrammed . | . . . Reused 3 | . . 3 Traps Extracted . | . . . Installed 3 | . . 3 Triggered 3 | . . 3 Most Traps Carried 3 | . 1 3 Machines | -11 -10 -10 ---------- Run | Yrd Mat Sub Machines Disabled 2 | . 1 1 Max in Single Turn 1 | . 1 1 Machines Repaired . | . . . Machines Dismantled . | . . . Machines Sabotaged . | . . . Overloaded Fab Kills . | . . . Hacking | -11 -10 -10 --------- Run | Yrd Mat Sub Machines Accessed 12 | . 9 3 Terminals 7 | . 7 . Fabricators . | . . . Repair Stations . | . . . Recycling Units 2 | . 2 . Scanalyzers . | . . . Garrison Access . | . . . Total Hacks 36 | . 33 3 Successful 17 | . 14 3 Failed 19 | . 19 . Catastrophic 4 | . 4 . Database Lockouts . | . . . Manual 22 | . 22 . Terminals 29 | . 29 . Fabricators . | . . . Repair Stations . | . . . Recycling Units 4 | . 4 . Scanalyzers . | . . . Garrison Access . | . . . Terminal Hacks 9 | . 6 3 Part Schematic 1 | . 1 . Prototype ID Bank 2 | . 2 . Open Door 1 | . . 1 Alert Level 1 | . 1 . Hauler Manifests 1 | . 1 . Zone Layout 1 | . 1 . Proto ID Catalog 1 | . . 1 Release Object 1 | . . 1 Fabricator Hacks . | . . . Repair Station Hacks . | . . . Recycling Unit Hacks 1 | . 1 . Retrieve Components 1 | . 1 . Scanalyzer . | . . . Garrison Access Hacks . | . . . Unauthorized Hacks 7 | . 7 . Terminals 5 | . 5 . Botnet 4 | . 4 . Operators 1 | . 1 . Fabricators . | . . . Repair Stations . | . . . Recycling Units 2 | . 2 . Mask 2 | . 2 . Scanalyzers . | . . . Garrison Access . | . . . Data Cores Recovered . | . . . Used . | . . . Hacking Detections 8 | . 8 . Full Trace Events . | . . . Feedback Events . | . . . Feedback Blocked . | . . . Robot Schematics Acquired . | . . . Robots Built . | . . . Authchips . | . . . Time . | . . . Total Robot Build Rating . | . . . Part Schematics Acquired 1 | . 1 . Parts Built . | . . . Authchips . | . . . Time . | . . . Total Part Build Rating . | . . . Parts Repaired . | . . . Time . | . . . Parts Recycled . | . . . Recycled Matter . | . . . Retrieved Matter . | . . . Retrieved Components 10 | . 10 . Parts Scanalyzed . | . . . Part Schematics Acquired . | . . . Parts Damaged . | . . . Bothacking | -11 -10 -10 ------------ Run | Yrd Mat Sub Used RIF Installer . | . . . Robots Hacked . | . . . Non-combat . | . . . Combat . | . . . Robot Hacks Applied . | . . . Relay Couplers Released . | . . . Fabnet Peak Effective % . | . . . Robots Rewired . | . . . Allies Hacked . | . . . Hacks Repelled . | . . . Allies | -11 -10 -10 -------- Run | Yrd Mat Sub Total Allies . | . . . Largest Group . | . . . Highest-Rated Group . | . . . Highest-Rated Ally . | . . . Total Orders . | . . . Ally Attacks . | . . . Total Damage . | . . . Kills . | . . . Allies Corrupted . | . . . Allies Melted . | . . . Intel | -11 -10 -10 ------- Run | Yrd Mat Sub Active Infowar (turns) 1080 | 62 937 81 Seismic 1080 | 62 937 81 Robot Analysis Total . | . . . Derelict Logs Recovered 2 | . . 2 Drone Launches . | . . . Drone Recoveries . | . . . Exploration | -11 -10 -10 ------------- Run | Yrd Mat Sub Turns Passed 4985 | 144 1466 3375 Spaces Moved 2986 | 60 851 2075 Core 2 | 2 . . Treads 270 | 58 212 . Legs . | . . . Wheels 2714 | . 639 2075 Hover . | . . . Flight . | . . . Fastest Speed 50 | 50 95 107 Average Speed 115 | 156 123 111 Slowest Speed 160 | 160 160 155 Overloaded Moves . | . . . Propulsion Burnouts . | . . . Robots Hopped . | . . . Potential Cave-ins . | . . . Cave-ins Triggered . | . . . Exploration Rate (%) 59 | 5 99 73 Regions Visited 2 Branch Regions 1 Pre-discovered Areas 1 | . . 1 Known Exits Taken . | . . . Unknown Exits Taken 2 | 1 1 . Scrap Searched 5 | . . 5 Spaces Dug 8 | . 8 . Terrain Destroyed 29 | . 23 6 Melee . | . . . Projectile . | . . . AOE 29 | . 23 6 Terrain Rammed . | . . . Walls Destroyed . | . . . Machines Disabled . | . . . Actions | -11 -10 -10 --------- Run | Yrd Mat Sub Total 4226 | 88 1153 2985 Wait 942 | . 163 779 Move 2984 | 59 850 2075 Hop . | . . . Pick Up 49 | 10 28 11 Fast Attach 7 | 6 . 1 Attach 12 | 1 2 9 Detach . | . . . Swap 58 | . 27 31 Drop 36 | 1 20 15 Fire 135 | 11 63 61 Melee . | . . . Ram . | . . . Kick . | . . . Crush . | . . . Escape Stasis . | . . . Rewire . | . . . Trap 3 | . . 3 Miscellaneous . | . . . Route ------- -11/Scrapyard -10/Materials (discovered 6 exits: [*Mat x3] / [*Min x2] / *Sub) -10/Subcaves (discovered 2 exits: [*Mat x2]) History --------- Turn | Location | Event 6 | -11/Scrapyard | Discovered new exit (range 15) 145 | -11/Scrapyard | Entered Materials 315 | -10/Materials | Build established: Mutant 507 | -10/Materials | Discovered new exit (range 6) 565 | -10/Materials | Discovered new exit (range 9) 645 | -10/Materials | Derelicts attacked the area 691 | -10/Materials | Discovered new exit (range 4) 1075 | -10/Materials | Discovered new exit (range 16) 1233 | -10/Materials | Discovered new exit (range 6) 1390 | -10/Materials | Discovered new exit (range 12) 1611 | -10/Materials | Entered Subcaves 1612 | -10/Subcaves | Approached by a straggling Scientist 1724 | -10/Subcaves | Core integrity fell below 50% 1907 | -10/Subcaves | Learned location of Zion (-6) 1948 | -10/Subcaves | Discovered new exit (range 9) 1958 | -10/Subcaves | Disturbed a concealed Subdweller 1996 | -10/Subcaves | A swath of the cavern ceiling suddenly collapsed 2141 | -10/Subcaves | Core integrity fell below 20% 2377 | -10/Subcaves | Shifting Twisted Machinery released Flamer 2384 | -10/Subcaves | Discovered new exit (range 9) 2385 | -10/Subcaves | Shifting Twisted Machinery released Barrage Gun 2429 | -10/Subcaves | Shifting Twisted Machinery released Riot Gun 2436 | -10/Subcaves | Shifting Twisted Machinery released Flamer 2456 | -10/Subcaves | Learned Materials security intel 2550 | -10/Subcaves | Disturbed a concealed Subdweller 3013 | -10/Subcaves | Curiously followed by a Cobbler waking with a query about "LVR3C" 4134 | -10/Subcaves | A swath of the cavern ceiling suddenly collapsed 4712 | -10/Subcaves | Visited 4L-MR0's lab 4738 | -10/Subcaves | Found Flightbrick 4986 | -10/Subcaves | Destroyed by 4R-WHV(R) with Subdweller Machine Gun Last Messages --------------- Power Bank Rainbow Chip VL-GR5's Exoskeleton "Deathgrip" Powered Cannon 04729_ 4L-MR0 mumbles: "Who knows where that last prototype ended up, probably tossed aside somewhere as if it were useless junk..." 04731_ Testing Chamber breached. 04738_ Dropped Battle Cannon. 04738_ Acquired Flightbrick. 04741_ Connecting with 4L-MR0's Prototype Logs... 04745_ Subatomizers dissect the Battle Cannon. 04755_ Dropped Heat Sink. 04756_ Dropped Autogun. 04756_ Acquired Scrap Shield. 04857_ Acquired 7 matter. 04900_ System corrupted: Energy discharge (-95). 04937_ System corrupted: Matter fused (-9). 04972_ L,QNOCP4BX>IZ>F8Q:X2QZEK/THQJ3J01F Z Map ----- +----------------------------------------------------+ | ???????????????## ##?## ### #????????? | | ????????????????## #???## ##?# #????????? | | ?????????????????# #????###?## #????????? | | ?????????????????# ##????????# #????????? | | ??????## ???###?# ##?????????# #????????? | | ??????# ## ## #??????????# ##????????? | | ??????# #??????????# ###?????????? | | ??????# #?????????## #???????????? | | ??????# ####?????## #???????????? | | ??????# #### #?????# ##???????????? | | ?????# ## ???## #####?# ##????????????? | | ????# ??##?????# ### ##?????????????? | | ????? ???????????# ### ##?###??????????? | | ?????? ???????????# ## ###### #??????????? | | ?????????????????# ### ##?# #??????????? | | ?????????????????## ### ## ### #??????????? | | ?????????????####?##?# ### ##??????????? | | ????? ???????# ##?## ##?# ##???????????? | | ???? ?????# ### #??# ##????????????? | | ????? ???## ##?#######?????????????? | | ??????# ### #??????#??????????????? | | ???????# #????? ???????????????? | | ????????# ####???? ????????????????? | | ????????## ##?????? ?????????????????? | | ?????????# #########??? #?????????????????? | | ????????## # ###@##? #?????????????????? | | ????????# # ## ##????????????????? | | ?? R""""#????????????????? | | ?? ## # """##????????????????? | | ???## ## ## ### #????????????????? | | ????# ??###?## ## #????????????????? | | ????# ????????# #????????????????? | | ???? ?????????# #????????????????? | | ?????## ?????????? #### #???????????????? | | ??????#?????????# ##??## #???????????????? | | ????????????????# #?????#### ??????????????? | | ????????????????###?????????? ?????????????? | | ????????????????????????????? " "????????????? | | ??????????????????????????????""### # ???????????? | | ??????????????????????????????###???#????????????? | | ?????????????????????????????????????????????????? | | ?????????????????????????????????????????????????? | | ?????????????????????????????????????????????????? | | ?????????????????????????????????????????????????? | | ?????????????????????????????????????????????????? | | ?????????????????????????????????????????????????? | | ?????????????????????????????????????????????????? | | ?????????????????????????????????????????????????? | | ?????????????????????????????????????????????????? | | ?????????????????????????????????????????????????? | +----------------------------------------------------+ Best States ------------- Heat Dissipation 35 Energy Generation 15 Energy Capacity 250 Matter Stores 300 Matter Capacity 300 Sight Range 16 Terrain Scan Density 10 Armor Coverage 150 Evasion (%) 41 Recoil Reduction 2 Item Schematics ----------------- Med. Laser | -10/Materials | Hacked Robot Schematics ------------------ None Fabricated ------------ Nothing Repaired ---------- Nothing Alien Tech Used ----------------- None Achievements -------------- None Challenges ------------ None Game ------ Seed VoltaicSubdwellerBroadsword Manual? 0 Play Time 00:40:43 Cumulative 129.0 hours Start 2025.06.08 @ 20:19:40 End 2025.06.08 @ 20:58:47 Sessions 1 Manual Loads 0 Difficulty Rogue Special Mode None Game No. 93 Rogue 93 Adventurer 0 Explorer 0 Win Type - Total 1 Types 1/0/0/0/0/0/0/0/0/0 Lore% 42 Gallery% 47 Achievement% 42 Wizard Run 0 Options --------- Layout 1 ASCII 0 Keyboard 0 Movement Mouse Keybinds 0 Fullscreen 1 Font 32/SmallcapsGlow Map View 50x35 Zoom Use 0% Tactical HUD 1 Map Filters NONE Filters NONE Steam 1 RUN: b5732ccf-05bf-4c26-b604-67a202774af5